Workbook

Sheet PR
A1: NOM
A2: TIPUS CONTRACTE | J2: (*) Retribucions 2023 actualitzades amb l'increment del 0,5% (nov23 retroactiu gener 23)
A3: DEDICACIÓ | B3: 37.5 | C3: =IF(ValLAB!J20=2,"Posar dedicació 37,5 hores",IF(ValLAB!J20=3,"Posar dedicació a temps parcial","TP: posar les hores setmanals de dedicació / TC: posar 37,5 hores")) -> TP: posar les hores setmanals de dedicació / TC: posar 37,5 hores | G3: mesos | H3: dies | J3: (*) Actualització Base Màx. Mín. I MEI amb vigència 1 de gener del 2024
A4: INICI VINCULACIÓ | B4: 2025-01-01 | G4: =IF(B5=0,0,SUM(D65)) -> 12 | H4: =IF(B5=0,0,SUM(E65)) -> 0 | J4: (*) Actualització Increment retributiu 0,5% març 2024 (efectes retroactius 01 gener 2023)
A5: INICI CONTRACTE/PRORROGA | B5: 2025-01-01 | E5: FI CONTRACTE/PRORROGA | H5: 2025-12-31 | J5: (*) Actualització Increment retributiu 2% juliol 2024 (efectes retroactius 01 gener 2024)
A6: CATEGORIA | E6: Nº TRIENNIS
A7: Nº Dies Indemnització | B7: 20 | G7: IMPORT TRIENNIS | H7: =(H6*ValLAB!B8)*(B3/37.5) -> 0
A8: COST MENSUAL | G8: COST ANUAL
A9: Retribucions: | B9: =SUM(B10:B13) -> 1703.29 | G9: Retribucions: | H9: =B9*12 -> 20439.48
A10: Sou | B10: =(ValLAB!K16)*B3/37.5 -> 1410.06 | G10: Sou | H10: =B10*12 -> 16920.72
A11: Comp.Lloc de treball | B11: =(ValLAB!L16)*B3/37.5 -> 188.41 | G11: Comp.Lloc de treball | H11: =B11*12 -> 2260.92
A12: Complement categoria | B12: =(ValLAB!M16)*B3/37.5 -> 96.63 | G12: Complement categoria | H12: =B12*12 -> 1159.56
A13: Acord mesa universitària | B13: =(ValLAB!N16)*B3/37.5 -> 8.19 | G13: Acord mesa universitària | H13: =B13*12 -> 98.28
A15: Prorrata mensual extres | B15: =ValLAB!O16*2/12*B3/37.5 -> 282.5166667 | G15: Prorrata extres | H15: =SUM(B15*12) -> 3390.2
A16: Prorrata mensual triennis extres | B16: =H7*2/12 -> 0 | G16: Prorrata triennis extres | H16: =SUM(B16*12) -> 0
A17: TOTAL PRORRATA | B17: =SUM(B15:B16) -> 282.5166667 | G17: TOTAL PRORRATA | H17: =SUM(B17*12) -> 3390.2
A19: Triennis: | B19: =SUM(H7) -> 0 | G19: Triennis: | H19: =B19*12 -> 0
A21: TOTAL RETRIB. | B21: =SUM(B9+B17+B19) -> 1985.806667 | G21: TOTAL RETRIB. | H21: =SUM(H9+H17+H19) -> 23829.68
A22: Indemnització RD | B22: =(B9+B17+B19)*12/365*B7/12 -> 108.8113242 | G22: Indemnització RD | H22: =B22*12 -> 1305.73589
A23: Quota patronal | B23: =IF(B21>ValLAB!H15,ValLAB!L20*ValLAB!H15,B21*ValLAB!L20) -> 636.848198 | G23: Quota patronal | H23: =B23*12 -> 7642.178376
A24: TOTAL COST | B24: =SUM(B21,B23) -> 2622.654865 | G24: TOTAL COST | H24: =SUM(B24*12) -> 31471.85838
G25: FONS CONTINGÈNCIA 2 % | H25: =SUM(H24*2%) -> 629.4371675
G26: Cost amb marge | H26: =SUM(H24*B47)+H24 -> 32101.29554
A27: COST PERIODE ACTUAL (PRORROGA)
A28: =CONCATENATE(B1," (",DAY(B5),"/",MONTH(B5),"/",YEAR(B5),"-",DAY(H5),"/",MONTH(H5),"/",YEAR(H5),")") -> (1/1/2025-31/12/2025)
B29: ACTUAL | D29: AMB ARROSEGAMENT
A30: Retribucions: | B30: =IF(B9=0,0,B9*(D65+(E65/30))) -> 20439.48 | D30: =IF( (D67+E67+D68+E68)=0,0,B30) -> 0
A32: TOTAL EXTRES: | B32: =SUM(B33:B34) -> 3390.2 | D32: =SUM(D33:D34) -> 0
A33: Extra juny | B33: =IF(B17=0," ",B17/2*(D65+(E65/30))) -> 1695.1 | D33: =IF((D67+E67+D68+E68)=0,0,B17/2*(D67+E67/30)+B33) -> 0
A34: Extra desembre | B34: =IF(B17=0," ",(B17/2)*(D65+E65/30)) -> 1695.1 | D34: =IF((D67+E67+D68+E68)=0,0,B17/2*(D68+E68/30)+B34) -> 0
A36: Triennis: | B36: =IF(B19=0,0,B19*(D65+E65/30)) -> 0 | D36: =IF((D67+E67+D68+E68)=0,0,B36) -> 0
A38: TOTAL RETRIB. | B38: =IF(B30=0,0,SUM(B30+B32+B36)) -> 23829.68 | D38: =SUM(D30+D32+D36) -> 0
A39: Indemnització RD | B39: =IF(B22=0,0,B22*(D65+E65/30)) -> 1305.73589 | D39: =IF((D67+E67+D68+E68)=0,0,B22*(D69+E69/30)+B39) -> 0
A40: Quota patronal | B40: =IF(B21>ValLAB!H15,B23*(D65+(E65/30)),B38*ValLAB!L20) -> 7642.178376 | D40: =IF((D67+E67+D68+E68)=0,0,B40) -> 0
A41: TOTAL COST | B41: =SUM(B38,B40) -> 31471.85838 | D41: =SUM(D38:D40) -> 0
A42: FONS CONTINGÈNCIA 2 % | B42: =B41*0% -> 0
A43: Import L1 | B43: =B38 -> 23829.68 | D43: =SUM(D38+D39) -> 0
A44: Import L2 | B44: =SUM(B40) -> 7642.178376 | D44: =SUM(D40) -> 0
A46: COST PERIODE ACTUAL AMB MARGE
A47: Marge | B47: 0.02
D48: Amb arrossegament
A49: Import L1 | B49: =SUM(B43)+(B43*$B$47) -> 24306.2736 | C49: Import L1 | D49: =SUM(D43)+(D43*$B$47) -> 0
A50: Import L2 | B50: =SUM(B44+B44*$B$47) -> 7795.021944
A51: TOTAL | B51: =SUM(B49:B50) -> 32101.29554 | C51: Import L2 | D51: =SUM(D44+D44*$B$47) -> 0
A53: Cost amb marge i retallada PERIODE ACTUAL
B54: Retribucions | C54: Quota patronal
A55: Import aprox.Retallada 2014 | B55: =(B17/2)*(D70+E70/30) -> 0 | C55: =(B55*ValLAB!L20) -> 0
B56: Sense arrossegament | D56: Amb arrossegament
A57: Import L1 | B57: =SUM(B43-B55)+(B43-B55)*$B$47 -> 24306.2736 | C57: Import L1 | D57: =IF((D67+E67+D68+E68)=0,0,(D43-B55)+(D43-B55)*$B$47) -> 0
A58: Import L2 | B58: =SUM(B44-C55)+(B44-C55)*$B$47 -> 7795.021944 | C58: Import L2 | D58: =IF((D67+E67+D68+E68)=0,0,(D44-C55)+(D44-C55)*$B$47) -> 0
A59: TOTAL | B59: =SUM(B57:C58) -> 32101.29554 | C59: TOTAL | D59: =SUM(D57:D58) -> 0
A60: FONS CONTINGÈNCIA | B60: =SUM((B43-B55)+(B44))*3% -> 944.1557513 | C60: (sense marge)
A62: MERITACIÓ ARROSEGAMENT PAGUES
B63: DATA INICI | C63: DATA FI | D63: Nº MESOS | E63: Nº DIES
A64: TOTAL VINCULACIÓ | B64: =IF(B4=0," ",B4) -> 2025-01-01 | C64: =IF(H5=0," ",H5) -> 2025-12-31 | D64: =IF((C64-B64)>0,'calcul dies'!L5,"ERROR DATES") -> 12 | E64: =IF((C64-B64)>0,'calcul dies'!N5," ") -> 0
A65: PRORROGA | B65: =IF(B5=0," ",B5) -> 2025-01-01 | C65: =IF(H5=0," ",H5) -> 2025-12-31 | D65: =IF((C65-B65)>0,'calcul dies'!L10,"ERROR DATES") -> 12 | E65: =IF((C65-B65)>0,'calcul dies'!N10," ") -> 0
A66: MERITEN | C66: DATA FI | D66: NºMESOS | E66: Nº DIES
A67: de 01/07 a 30/06 | C67: =IF(H5=0," ",(H5)-1) -> 2025-12-30 | D67: =IF(B67=0,0,IF((C67-B67)>366,"ERROR DATA",IF((C67-B67)>0,'calcul dies'!L15,"ERR0R DATA "))) -> 0 | E67: =IF(B67=0,0,IF((C67-B67)>366," ",IF((C67-B67)>0,'calcul dies'!N15," "))) -> 0
A68: de 01/01 a 31/12 | C68: =IF(H5=0," ",(H5)-1) -> 2025-12-30 | D68: =IF(B68=0,0,IF((C68-B68)>366,"ERROR DATA",IF((C68-B68)>0,'calcul dies'!L20,"ERR0R DATA "))) -> 0 | E68: =IF(B68=0,0,IF((C68-B68)>366," ",IF((C68-B68)>0,'calcul dies'!N20," "))) -> 0
A69: Indemnització RD | C69: =IF(H5=0," ",(H5)-1) -> 2025-12-30 | D69: =IF(B69=0,0,IF((C69-B69)>366,"ERROR DATA",IF((C69-B69)>0,'calcul dies'!#REF!,"ERR0R DATA "))) -> 0 | E69: =IF(B69=0,0,IF((C69-B69)>366,"ERROR DATA",IF((C69-B69)>0,'calcul dies'!#REF!," "))) -> 0
A70: Període treballat al 2014 | C70: =IF(YEAR(H5)>2014,DATE(2014,12,31),IF(H5<>0,H5," ")) -> 2014-12-31 | D70: =IF(B70=0,0,IF((C70-B70)>366,"ERROR DATA",IF((C70-B70)>0,'calcul dies'!#REF!,"ERR0R DATA "))) -> 0 | E70: =IF(B70=0,0,IF((C70-B70)>366,"ERROR DATA",IF((C70-B70)>0,'calcul dies'!#REF!," "))) -> 0

Sheet PR DISTINGIT
A1: NOM
A2: TIPUS CONTRACTE | K2: (*) Retribucions 2023 actualitzades amb l'increment del 2,5%
A3: DEDICACIÓ | B3: 37.5 | C3: =IF('ValLAB DISTINGIT'!J20=1,"Posar dedicació 37,5 hores","TP: posar les hores setmanals de dedicació ") -> Posar dedicació 37,5 hores | H3: mesos | I3: dies | K3: (*) Actualització Base Màx. Mín. I MEI amb vigència 1 de gener del 2024
A4: INICI VINCULACIÓ | B4: 2024-10-01 | E4: Periode | H4: =IF(B5=0,0,SUM(D58)) -> 3 | I4: =IF(B5=0,0,SUM(E58)) -> 0 | K4: (*) Actualització Increment retributiu 0,5% març 2024 (efectes retroactius 01 gener 2023)
A5: INICI CONTRACTE/PRORROGA | B5: 2024-10-01 | G5: FI CONTRACTE/PRORROGA | I5: 2024-12-31 | K5: (*) Actualització Increment retributiu 2% juliol 2024 (efectes retroactius 01 gener 2024)
A6: CATEGORIA | B6: Director | H6: Nº TRIENNIS
A8: Nº Dies RD | B8: =IF(ISNUMBER('ValLAB DISTINGIT'!J20),IF('ValLAB DISTINGIT'!J20<3,12,""),"") -> 12 | H8: IMPORT TRIENNIS | I8: =(I6*ValLAB!B8)*(B3/37.5) -> 0
A9: COST MENSUAL | H9: COST ANUAL
A10: Retribucions: | B10: =SUM(B11:B15) -> 3021.49 | H10: Retribucions: | I10: =B10*12 -> 36257.88
A11: Sou | B11: ='ValLAB DISTINGIT'!B5*B3/37.5 -> 1410.06 | H11: Sou | I11: 16920.72
A12: Comp.Lloc de treball | B12: ='ValLAB DISTINGIT'!C5*B3/37.5 -> 188.41 | H12: Comp.Lloc de treball | I12: 2260.92
A13: Complement categoria | B13: ='ValLAB DISTINGIT'!D5*B3/37.5 -> 1414.83 | H13: Complement categoria | I13: 16977.96
A14: Complement de distinció | H14: Complement categoria | I14: 0
A15: Acord mesa universitària | B15: ='ValLAB DISTINGIT'!E5*B3/37.5 -> 8.19 | H15: Acord mesa universitària | I15: 98.28
A17: Prorrata mensual extres | B17: =(B10-B15)*2/12 -> 502.2166667 | H17: Prorrata extres | I17: =SUM(B17*12) -> 6026.6
A18: Prorrata mensual triennis extres | B18: =I8*2/12 -> 0 | H18: Prorrata triennis extres | I18: =SUM(B18*12) -> 0
A19: TOTAL PRORRATA | B19: =SUM(B17:B18) -> 502.2166667 | H19: TOTAL PRORRATA | I19: =SUM(B19*12) -> 6026.6
A21: Triennis: | B21: =SUM(I8) -> 0 | H21: Triennis: | I21: =B21*12 -> 0
A23: TOTAL RETRIB. | B23: =SUM(B10+B19+B21) -> 3523.706667 | H23: TOTAL RETRIB. | I23: =SUM(I10+I19+I21) -> 42284.48
A24: Indemnització | B24: =(B10+B19+B21)*12/365*B8/12 -> 115.8478904 | H24: Indemnització | I24: =B24*12 -> 1390.174685
A25: Quota patronal | B25: =IF(B23>'ValLAB DISTINGIT'!H15,'ValLAB DISTINGIT'!L20*'ValLAB DISTINGIT'!H15,B23*'ValLAB DISTINGIT'!L20) -> 1172.337208 | H25: Quota patronal | I25: =B25*12 -> 14068.0465
A26: TOTAL COST | B26: =SUM(B23,B25) -> 4696.043875 | H26: TOTAL COST | I26: =SUM(B26*12) -> 56352.5265
H28: Cost amb marge | I28: =SUM(I26*B49)+I26 -> 57761.33966
A29: COST PERIODE ACTUAL (PRORROGA)
A30: =CONCATENATE(B1," (",DAY(B5),"/",MONTH(B5),"/",YEAR(B5),"-",DAY(I5),"/",MONTH(I5),"/",YEAR(I5),")") -> (1/10/2024-31/12/2024)
B31: ACTUAL
A32: Retribucions: | B32: =IF(B10=0,0,B10*(D58+(E58/30))) -> 9064.47
A34: TOTAL EXTRES: | B34: =SUM(B35:B36) -> 1506.65
A35: Extra juny | B35: =IF(B19=0," ",B19/2*(D58+(E58/30))) -> 753.325
A36: Extra desembre | B36: =IF(B19=0," ",(B19/2)*(D58+E58/30)) -> 753.325
A38: Triennis: | B38: =IF(B21=0,0,B21*(D58+E58/30)) -> 0
A40: TOTAL RETRIB. | B40: =IF(B32=0,0,SUM(B32+B34+B38)) -> 10571.12
A41: Indemnització | B41: =IF(B24=0,0,B24*(D58+E58/30)) -> 347.5436712
A42: Quota patronal | B42: =IF(B23>'ValLAB DISTINGIT'!H15,B25*(D58+(E58/30)),B40*'ValLAB DISTINGIT'!L20) -> 3517.011624
A43: TOTAL COST | B43: =SUM(B40,B42) -> 14088.13162
A45: Import L1 | B45: =B40+B41 -> 10918.66367
A46: Import L2 | B46: =SUM(B42) -> 3517.011624
A48: COST PERIODE ACTUAL AMB MARGE
A49: Marge | B49: 0.025
D50: Amb arrossegament
A51: Import L1 | B51: =SUM(B45)+(B45*$B$49) -> 11191.63026 | C51: Import L1 | D51: =SUM(D45)+(D45*$B$49) -> 0
A52: Import L2 | B52: =SUM(B46+B46*$B$49) -> 3604.936915
A53: TOTAL | B53: =SUM(B51:B52) -> 14796.56718 | C53: Import L2 | D53: =SUM(D46+D46*$B$49) -> 0
A55: MERITACIÓ ARROSEGAMENT PAGUES
B56: DATA INICI | C56: DATA FI | D56: Nº MESOS | E56: Nº DIES
A57: TOTAL VINCULACIÓ | B57: =IF(B4=0," ",B4) -> 2024-10-01 | C57: =IF(I5=0," ",I5) -> 2024-12-31 | D57: =IF((C57-B57)>0,'calcul dies'!L15,"ERROR DATES") -> 3 | E57: =IF((C57-B57)>0,'calcul dies'!N15," ") -> 0
A58: PRORROGA | B58: =IF(B5=0," ",B5) -> 2024-10-01 | C58: =IF(I5=0," ",I5) -> 2024-12-31 | D58: =IF((C58-B58)>0,'calcul dies'!L20,"ERROR DATES") -> 3 | E58: =IF((C58-B58)>0,'calcul dies'!N20," ") -> 0
A59: MERITEN | C59: DATA FI | D59: NºMESOS | E59: Nº DIES
A60: de 01/07 a 30/06 | C60: =IF(I5=0," ",(I5)-1) -> 2024-12-30 | D60: =IF(B60=0,0,IF((C60-B60)>366,"ERROR DATA",IF((C60-B60)>0,'calcul dies'!L15,"ERR0R DATA "))) -> 0 | E60: =IF(B60=0,0,IF((C60-B60)>366," ",IF((C60-B60)>0,'calcul dies'!N15," "))) -> 0
A61: de 01/01 a 31/12 | C61: =IF(I5=0," ",(I5)-1) -> 2024-12-30 | D61: =IF(B61=0,0,IF((C61-B61)>366,"ERROR DATA",IF((C61-B61)>0,'calcul dies'!L20,"ERR0R DATA "))) -> 0 | E61: =IF(B61=0,0,IF((C61-B61)>366," ",IF((C61-B61)>0,'calcul dies'!N20," "))) -> 0
A62: Indemnització RD | C62: =IF(I5=0," ",(I5)-1) -> 2024-12-30 | D62: =IF(B62=0,0,IF((C62-B62)>366,"ERROR DATA",IF((C62-B62)>0,'calcul dies'!#REF!,"ERR0R DATA "))) -> 0 | E62: =IF(B62=0,0,IF((C62-B62)>366,"ERROR DATA",IF((C62-B62)>0,'calcul dies'!#REF!," "))) -> 0
A63: Període treballat al 2014 | C63: =IF(YEAR(I5)>2014,DATE(2014,12,31),IF(I5<>0,I5," ")) -> 2014-12-31 | D63: =IF(B63=0,0,IF((C63-B63)>366,"ERROR DATA",IF((C63-B63)>0,'calcul dies'!#REF!,"ERR0R DATA "))) -> 0 | E63: =IF(B63=0,0,IF((C63-B63)>366,"ERROR DATA",IF((C63-B63)>0,'calcul dies'!#REF!," "))) -> 0

Sheet ValLAB (hidden)
A2: Grups | B2: Sou mes | C2: comp.lloc | D2: comp.cat | E2: ACORD MESA | G2: Centre Liquidació | H2: Valor Seg_ Social | I2: Reduccions | K2: Tipus de contractes PR | L2: Centre Liq. | M2: % QP | N2: % RETRIB. | O2: Indemnització | R2: Finançament | T2: Conceptes
A3: Postdoctoral | B3: 1410.06 | C3: 188.41 | D3: 96.63 | E3: 8.19 | G3: 005-A | I3: 1 | K3: LABORAL INDEFINIT | L3: 006-A | M3: 0.3207 | N3: 1 | O3: si | P3: Increment retributiu 0,5 març 24 (retroactiu gener23) | R3: Capítol 1 | S3: 1 | T3: Substitució per alliberament sindical | U3: 1 | V3: Persona a substituir categoria, dedicació i periode d'àbsència
A4: Ordinari | B4: 1410.06 | C4: 188.41 | D4: 944.03 | E4: 8.19 | G4: 006-A | I4: 0.75 | K4: TEMPORAL VINCULAT A PROGRAMES FINANÇATS PER FONS EUROPEUS TC (37,5h) | L4: 007-A | M4: 0.3327 | N4: 1 | O4: si | R4: Fin. Específic | S4: 2 | T4: Substitució per IT | U4: 2 | V4: Persona substituta, categoria i dedicació
A5: Director | B5: 1410.06 | C5: 188.41 | D5: 1414.83 | E5: 8.19 | G5: 007-A | I5: 0.6 | K5: TEMPORAL VINCULAT A PROGRAMES FINANÇATS PER FONS EUROPEUS TP (<37,5h) | M5: 0.3327 | N5: 1 | O5: si | R5: Cofinançament | S5: 3 | T5: Reforç | U5: 3 | V5: Grup i complements
G6: 005-D | T6: Gratificació | U6: 4 | V6: Import /mes
G7: 006-D | T7: Hores extres / Serveis Extraordinàris | U7: 5 | V7: Nombre d'hores
A8: import triennis | B8: 54.25 | G8: 007-D | T8: Altres (de FDP) | U8: 6 | V8: Tipus
G9: 005-80 | S9: Contractació contra plaça autoritzada | T9: 7
A10: AMB INCREMENT DEL 2% JULIOL 2024 | G10: 006-80 | S10: Resolució concurs | T10: 8
G11: 007-80 | S11: Altres (d'apunt) | T11: 9
G12: 001-A | S12: Actuació transversal | T12: 10 | U12: Acció transversal concreta:
G13: 002-A | S13: Actuació general | T13: 11 | U13: Tipus + Clau retributiva afectada
J14: Retribucions
A15: INDEMNITZACIONS | F15: Base max. Cotització 2025 | H15: 4909.5 | J15: Grup | K15: Sou | L15: Millora | M15: Hora | O15: per pagues
A16: INDEFINIT | B16: 20 | J16: 1 | K16: =CHOOSE(J16,B3,B4,B5) -> 1410.06 | L16: =CHOOSE(J16,C3,C4,C5) -> 188.41 | M16: =CHOOSE(J16,D3,D4,D5) -> 96.63 | N16: =CHOOSE(J16,E3,E4,E5) -> 8.19 | O16: =SUM(K16:M16) -> 1695.1
A17: TEMPORAL | B17: 12 | J17: CLT
A18: FORMATIU | B18: 0 | J18: 29 | K18: =INDEX(F3:F32,J18) -> 7.47
J19: Centre de Liquidació-Epígraf | L19: % corresponent
J20: 1 | K20: =INDEX(L3:L5,J20) -> 006-A | L20: =INDEX(M3:M5,J20) -> 0.3207
A28: 2021
A29: CATEGORIA | B29: DEDICACIÓ | C29: SOU BASE | D29: COMPL. DE CATEGORIA | E29: COMPL. DE LLOC | F29: ACORD MESA UNIVERSITATS | G29: TRIENNI MENSUAL
A30: Investigador posdoc | B30: TC | C30: 1290.49 | D30: 172.42 | E30: 88.42 | F30: 7.47
A31: Investigador ordinari/a | B31: TC | C31: 1290.49 | D31: 172.42 | E31: 863.98 | F31: 7.47 | G31: 49.64
A32: Director/a de investigació | B32: TC | C32: 1290.49 | D32: 172.42 | E32: 1294.85 | F32: 7.47 | G32: 49.64
A34: 2022
A35: Investigador posdoc | B35: TC | C35: 1316.3 | D35: 175.87 | E35: 90.19 | F35: 7.62
A36: Investigador ordinari/a | B36: TC | C36: 1316.3 | D36: 175.87 | E36: 881.26 | F36: 7.62 | G36: 50.64
A37: Director/a de investigació | B37: TC | C37: 1316.3 | D37: 175.87 | E37: 1320.75 | F37: 7.62 | G37: 50.64
A39: 2022-11-01 | B39: 0.015
A40: Investigador posdoc | B40: TC | C40: 1335.66 | D40: 178.46 | E40: 91.52 | F40: 7.74 | G40: 51.39
A41: Investigador ordinari/a | B41: TC | C41: 1335.66 | D41: 178.46 | E41: 894.22 | F41: 7.74 | G41: 51.39
A42: Director/a de investigació | B42: TC | C42: 1335.66 | D42: 178.46 | E42: 1340.18 | F42: 7.74 | G42: 51.39
A45: 2023-02-01 | B45: 0.025
A46: Investigador posdoc | B46: TC | C46: =(C40*$B$45)+C40 -> 1369.0515 | D46: =(D40*$B$45)+D40 -> 182.9215 | E46: 93.808 | F46: 7.9335 | G46: 52.67475
A47: Investigador ordinari/a | B47: TC | C47: =(C41*$B$45)+C41 -> 1369.0515 | D47: 182.9215 | E47: 916.5755 | F47: 7.9335 | G47: 52.67475
A48: Director/a de investigació | B48: TC | C48: 1369.0515 | D48: 182.9215 | E48: 1373.6845 | F48: 7.9335 | G48: 52.67475
A51: 2023-11-01 | B51: 0.005
A52: Investigador posdoc | B52: TC | C52: 1375.73 | D52: 183.82 | E52: 94.27 | F52: 7.98 | G52: 52.94
A53: Investigador ordinari/a | B53: TC | C53: 1375.73 | D53: 183.82 | E53: 921.04 | F53: 7.98 | G53: 52.94
A54: Director/a de investigació | B54: TC | C54: 1375.73 | D54: 183.82 | E54: 1380.38 | F54: 7.98 | G54: 52.94
A56: 2024-07-01 | B56: 0.02
A57: Investigador posdoc | B57: TC | C57: 1410.06 | D57: 188.41 | E57: 96.63 | F57: 8.19 | G57: 54.25
A58: Investigador ordinari/a | B58: TC | C58: 1410.06 | D58: 188.41 | E58: 944.03 | F58: 8.19 | G58: 54.25
A59: Director/a de investigació | B59: TC | C59: 1410.06 | D59: 188.41 | E59: 1414.83 | F59: 8.19 | G59: 54.25

Sheet ValLAB_antiga (hidden)
A2: Grups | B2: Sou mes | C2: comp.lloc | D2: comp.cat | E2: ACORD MESA | G2: Centre Liquidació | H2: Valor Seg_ Social | I2: Reduccions | K2: Tipus de contractes PR | L2: Centre Liq. | M2: % QP | N2: % RETRIB. | O2: Indemnització | R2: Finançament | T2: Conceptes
A3: Postdoctoral | B3: 1375.73 | C3: 183.82 | D3: 94.27 | E3: 7.98 | G3: 005-A | I3: 1 | K3: LABORAL INDEFINIT | L3: 006-A | M3: 0.319 | N3: 1 | O3: si | R3: Capítol 1 | S3: 1 | T3: Substitució per alliberament sindical | U3: 1 | V3: Persona a substituir categoria, dedicació i periode d'àbsència
A4: Ordinari | B4: 1375.73 | C4: 183.82 | D4: 921.04 | E4: 7.98 | G4: 006-A | I4: 0.75 | K4: TEMPORAL VINCULAT A PROGRAMES FINANÇATS PER FONS EUROPEUS TC (37,5h) | L4: 007-A | M4: 0.331 | N4: 1 | O4: si | R4: Fin. Específic | S4: 2 | T4: Substitució per IT | U4: 2 | V4: Persona substituta, categoria i dedicació
A5: Director | B5: 1375.73 | C5: 183.82 | D5: 1380.38 | E5: 7.98 | G5: 007-A | I5: 0.6 | K5: TEMPORAL VINCULAT A PROGRAMES FINANÇATS PER FONS EUROPEUS TP (<37,5h) | M5: 0.331 | N5: 1 | O5: si | R5: Cofinançament | S5: 3 | T5: Reforç | U5: 3 | V5: Grup i complements
G6: 005-D | T6: Gratificació | U6: 4 | V6: Import /mes
G7: 006-D | T7: Hores extres / Serveis Extraordinàris | U7: 5 | V7: Nombre d'hores
A8: import triennis | B8: 52.94 | G8: 007-D | T8: Altres (de FDP) | U8: 6 | V8: Tipus
G9: 005-80 | S9: Contractació contra plaça autoritzada | T9: 7
G10: 006-80 | S10: Resolució concurs | T10: 8
G11: 007-80 | S11: Altres (d'apunt) | T11: 9
A12: retribucions actualitzades amb l'increment 2,5% 2023 | G12: 001-A | S12: Actuació transversal | T12: 10 | U12: Acció transversal concreta:
G13: 002-A | S13: Actuació general | T13: 11 | U13: Tipus + Clau retributiva afectada
J14: Retribucions
F15: Base max. Cotització 2023 | H15: 4495.5 | J15: Grup | K15: Sou | L15: Millora | M15: Hora | O15: per pagues
J16: 1 | K16: =CHOOSE(J16,B3,B4,B5) -> 1375.73 | L16: =CHOOSE(J16,C3,C4,C5) -> 183.82 | M16: =CHOOSE(J16,D3,D4,D5) -> 94.27 | N16: =CHOOSE(J16,E3,E4,E5) -> 7.98 | O16: =SUM(K16:M16) -> 1653.82
J17: CLT
J18: 29 | K18: =INDEX(F3:F32,J18) -> 7.47
J19: Centre de Liquidació-Epígraf | L19: % corresponent
J20: 3 | K20: =INDEX(L3:L5,J20) -> 0 | L20: =INDEX(M3:M5,J20) -> 0.331
A28: 2021
A29: CATEGORIA | B29: DEDICACIÓ | C29: SOU BASE | D29: COMPL. DE CATEGORIA | E29: COMPL. DE LLOC | F29: ACORD MESA UNIVERSITATS | G29: TRIENNI MENSUAL
A30: Investigador posdoc | B30: TC | C30: 1290.49 | D30: 172.42 | E30: 88.42 | F30: 7.47
A31: Investigador ordinari/a | B31: TC | C31: 1290.49 | D31: 172.42 | E31: 863.98 | F31: 7.47 | G31: 49.64
A32: Director/a de investigació | B32: TC | C32: 1290.49 | D32: 172.42 | E32: 1294.85 | F32: 7.47 | G32: 49.64
A34: 2022
A35: Investigador posdoc | B35: TC | C35: 1316.3 | D35: 175.87 | E35: 90.19 | F35: 7.62
A36: Investigador ordinari/a | B36: TC | C36: 1316.3 | D36: 175.87 | E36: 881.26 | F36: 7.62 | G36: 50.64
A37: Director/a de investigació | B37: TC | C37: 1316.3 | D37: 175.87 | E37: 1320.75 | F37: 7.62 | G37: 50.64
A39: 2022-11-01 | B39: 0.015
A40: Investigador posdoc | B40: TC | C40: 1335.66 | D40: 178.46 | E40: 91.52 | F40: 7.74 | G40: 51.39
A41: Investigador ordinari/a | B41: TC | C41: 1335.66 | D41: 178.46 | E41: 894.22 | F41: 7.74 | G41: 51.39
A42: Director/a de investigació | B42: TC | C42: 1335.66 | D42: 178.46 | E42: 1340.18 | F42: 7.74 | G42: 51.39
A45: 2023-02-01 | B45: 0.025
A46: Investigador posdoc | B46: TC | C46: =(C40*$B$45)+C40 -> 1369.0515 | D46: =(D40*$B$45)+D40 -> 182.9215 | E46: 93.808 | F46: 7.9335 | G46: 52.67475
A47: Investigador ordinari/a | B47: TC | C47: =(C41*$B$45)+C41 -> 1369.0515 | D47: 182.9215 | E47: 916.5755 | F47: 7.9335 | G47: 52.67475
A48: Director/a de investigació | B48: TC | C48: 1369.0515 | D48: 182.9215 | E48: 1373.6845 | F48: 7.9335 | G48: 52.67475
A51: 2023-11-01 | B51: 0.005
A52: Investigador posdoc | B52: TC | C52: 1375.73 | D52: 183.82 | E52: 94.27 | F52: 7.98 | G52: 52.94
A53: Investigador ordinari/a | B53: TC | C53: 1375.73 | D53: 183.82 | E53: 921.04 | F53: 7.98 | G53: 52.94
A54: Director/a de investigació | B54: TC | C54: 1375.73 | D54: 183.82 | E54: 1380.38 | F54: 7.98 | G54: 52.94

Sheet ValLAB DISTINGIT (hidden)
A2: Grups | B2: Sou mes | C2: comp.lloc | D2: comp.cat | E2: ACORD MESA | G2: Centre Liquidació | H2: Valor Seg_ Social | I2: Reduccions | K2: Tipus de contractes PR DISTINGIT | L2: Centre Liq. | M2: % QP | N2: % RETRIB. | O2: Indemnització | R2: Finançament | T2: Conceptes
A3: Postdoctoral | B3: 1410.06 | C3: 188.41 | D3: 96.63 | E3: 8.19 | G3: 005-A | I3: 1 | K3: TEMPORAL TEMPS COMPLET (990-TC) | L3: 006-A | M3: 0.3327 | N3: 1 | O3: 12 dies | P3: Increment 0,08% MEI Gener2024 | R3: Capítol 1 | S3: 1 | T3: Substitució per alliberament sindical | U3: 1 | V3: Persona a substituir categoria, dedicació i periode d'àbsència
A4: Ordinari | B4: 1410.06 | C4: 188.41 | D4: 944.03 | E4: 8.19 | G4: 006-A | I4: 0.75 | K4: TEMPORAL TEMPS PARCIAL (990-TP) | L4: 007-A | M4: 0.3327 | N4: 1 | O4: 12 dies | R4: Fin. Específic | S4: 2 | T4: Substitució per IT | U4: 2 | V4: Persona substituta, categoria i dedicació
A5: Director | B5: 1410.06 | C5: 188.41 | D5: 1414.83 | E5: 8.19 | G5: 007-A | I5: 0.6 | R5: Cofinançament | S5: 3 | T5: Reforç | U5: 3 | V5: Grup i complements
G6: 005-D | T6: Gratificació | U6: 4 | V6: Import /mes
G7: 006-D | T7: Hores extres / Serveis Extraordinàris | U7: 5 | V7: Nombre d'hores
A8: import triennis | B8: 54.25 | G8: 007-D | T8: Altres (de FDP) | U8: 6 | V8: Tipus
G9: 005-80 | S9: Contractació contra plaça autoritzada | T9: 7
A10: AMB INCREMENT DEL 2% JULIOL 2024 | G10: 006-80 | S10: Resolució concurs | T10: 8
G11: 007-80 | S11: Altres (d'apunt) | T11: 9
G12: 001-A | S12: Actuació transversal | T12: 10 | U12: Acció transversal concreta:
G13: 002-A | S13: Actuació general | T13: 11 | U13: Tipus + Clau retributiva afectada
J14: Retribucions
F15: Base max. Cotització 2025 | H15: 4909.5 | J15: Grup | K15: Sou | L15: Millora | M15: Hora | O15: per pagues
J16: 2 | K16: =CHOOSE(J16,B3,B4,B5) -> 1410.06 | L16: =CHOOSE(J16,C3,C4,C5) -> 188.41 | M16: =CHOOSE(J16,D3,D4,D5) -> 944.03 | N16: =CHOOSE(J16,E3,E4,E5) -> 8.19 | O16: =SUM(K16:M16) -> 2542.5
J17: CLT
J18: 9 | K18: =INDEX(G3:G13,J18) -> 007-80
J19: Centre de Liquidació-Epígraf | L19: % corresponent
J20: 1 | K20: =INDEX(L3:L4,J20) -> 006-A | L20: =INDEX(M3:M4,J20) -> 0.3327
A28: 2021
A29: CATEGORIA | B29: DEDICACIÓ | C29: SOU BASE | D29: COMPL. DE CATEGORIA | E29: COMPL. DE LLOC | F29: ACORD MESA UNIVERSITATS | G29: TRIENNI MENSUAL
A30: Director/a de investigació | B30: TC | C30: 1290.49 | D30: 172.42 | E30: 1294.85 | F30: 7.47 | G30: 49.64
A32: 2022
A33: Director/a de investigació | B33: TC | C33: 1316.3 | D33: 175.87 | E33: 1320.75 | F33: 7.62 | G33: 50.64
A35: 2022-11-01
A36: Director/a de investigació | B36: TC | C36: 1335.66 | D36: 178.46 | E36: 1340.18 | F36: 7.74 | G36: 51.39
A38: 2023-02-01 | B38: 0.025
A39: Director/a de investigació | B39: TC | C39: =(C36*$B$38)+C36 -> 1369.0515 | D39: =(D36*$B$38)+D36 -> 182.9215 | E39: =(E36*$B$38)+E36 -> 1373.6845 | F39: =(F36*$B$38)+F36 -> 7.9335 | G39: =(G36*$B$38)+G36 -> 52.67475
A42: 2023-11-01 | B42: 0.005
A43: Director/a de investigació | B43: TC | C43: 1375.73 | D43: 183.82 | E43: 1380.38 | F43: 7.98 | G43: 52.94
A45: 2024-07-01 | B45: 0.02
A46: Director/a de investigació | B46: TC | C46: 1410.06 | D46: 188.41 | E46: 1414.83 | F46: 8.19 | G46: 54.25

Sheet ValLAB DISTINGIT_antiga (hidden)
A2: Grups | B2: Sou mes | C2: comp.lloc | D2: comp.cat | E2: ACORD MESA | G2: Centre Liquidació | H2: Valor Seg_ Social | I2: Reduccions | K2: Tipus de contractes PR DISTINGIT | L2: Centre Liq. | M2: % QP | N2: % RETRIB. | O2: Indemnització | R2: Finançament | T2: Conceptes
A3: Postdoctoral | B3: 1375.73 | C3: 183.82 | D3: 94.27 | E3: 7.98 | G3: 005-A | I3: 1 | K3: TEMPORAL TEMPS COMPLET (990-TC) | L3: 006-A | M3: 0.331 | N3: 1 | O3: 12 dies | R3: Capítol 1 | S3: 1 | T3: Substitució per alliberament sindical | U3: 1 | V3: Persona a substituir categoria, dedicació i periode d'àbsència
A4: Ordinari | B4: 1375.73 | C4: 183.82 | D4: 921.04 | E4: 7.98 | G4: 006-A | I4: 0.75 | K4: TEMPORAL TEMPS PARCIAL (990-TP) | L4: 007-A | M4: 0.331 | N4: 1 | O4: 12 dies | R4: Fin. Específic | S4: 2 | T4: Substitució per IT | U4: 2 | V4: Persona substituta, categoria i dedicació
A5: Director | B5: 1375.73 | C5: 183.82 | D5: 1380.38 | E5: 7.98 | G5: 007-A | I5: 0.6 | R5: Cofinançament | S5: 3 | T5: Reforç | U5: 3 | V5: Grup i complements
G6: 005-D | T6: Gratificació | U6: 4 | V6: Import /mes
G7: 006-D | T7: Hores extres / Serveis Extraordinàris | U7: 5 | V7: Nombre d'hores
A8: import triennis | B8: 52.94 | G8: 007-D | T8: Altres (de FDP) | U8: 6 | V8: Tipus
G9: 005-80 | S9: Contractació contra plaça autoritzada | T9: 7
G10: 006-80 | S10: Resolució concurs | T10: 8
A11: retribucions actualitzades amb l'increment previst 2023 | G11: 007-80 | S11: Altres (d'apunt) | T11: 9
G12: 001-A | S12: Actuació transversal | T12: 10 | U12: Acció transversal concreta:
G13: 002-A | S13: Actuació general | T13: 11 | U13: Tipus + Clau retributiva afectada
J14: Retribucions
F15: Base max. Cotització 2023 | H15: 4495.5 | J15: Grup | K15: Sou | L15: Millora | M15: Hora | O15: per pagues
J16: 2 | K16: =CHOOSE(J16,B3,B4,B5) -> 1375.73 | L16: =CHOOSE(J16,C3,C4,C5) -> 183.82 | M16: =CHOOSE(J16,D3,D4,D5) -> 921.04 | N16: =CHOOSE(J16,E3,E4,E5) -> 7.98 | O16: =SUM(K16:M16) -> 2480.59
J17: CLT
J18: 9 | K18: =INDEX(G3:G13,J18) -> 007-80
J19: Centre de Liquidació-Epígraf | L19: % corresponent
J20: 2 | K20: =INDEX(L3:L4,J20) -> 007-A | L20: =INDEX(M3:M4,J20) -> 0.331
A28: 2021
A29: CATEGORIA | B29: DEDICACIÓ | C29: SOU BASE | D29: COMPL. DE CATEGORIA | E29: COMPL. DE LLOC | F29: ACORD MESA UNIVERSITATS | G29: TRIENNI MENSUAL
A30: Director/a de investigació | B30: TC | C30: 1290.49 | D30: 172.42 | E30: 1294.85 | F30: 7.47 | G30: 49.64
A32: 2022
A33: Director/a de investigació | B33: TC | C33: 1316.3 | D33: 175.87 | E33: 1320.75 | F33: 7.62 | G33: 50.64
A35: 2022-11-01
A36: Director/a de investigació | B36: TC | C36: 1335.66 | D36: 178.46 | E36: 1340.18 | F36: 7.74 | G36: 51.39
A38: 2023-02-01 | B38: 0.025
A39: Director/a de investigació | B39: TC | C39: =(C36*$B$38)+C36 -> 1369.0515 | D39: =(D36*$B$38)+D36 -> 182.9215 | E39: =(E36*$B$38)+E36 -> 1373.6845 | F39: =(F36*$B$38)+F36 -> 7.9335 | G39: =(G36*$B$38)+G36 -> 52.67475
A42: 2023-11-01 | B42: 0.005
A43: Director/a de investigació | B43: TC | C43: 1375.73 | D43: 183.82 | E43: 1380.38 | F43: 7.98 | G43: 52.94

Sheet calcul dies
A1: CALCULS DIES LABORALS NO TOPATS
A3: dies pr | E3: CÀLCUL DIES pr
B4: DATA INICI | C4: DATA FI | F4: DIA | G4: MES | H4: ANY | J4: dif mesos | K4: dif dies | L4: total mesos | M4: dies | N4: total dies
A5: TOTAL VINCULACIÓ | B5: =PR!B64 -> 2025-01-01 | C5: =PR!H5 -> 2025-12-31 | E5: INICI VINCULACIÓ | F5: =DAY(B5) -> 1 | G5: =MONTH(B5) -> 1 | H5: =YEAR(B5) -> 2025 | J5: =IF(F5>1,-1,0) -> 0 | K5: =IF(F5=1,-M5,0) -> -31 | L5: =IF(H5=H6,G6-G5+1,13-G5+G6+(H6-H5-1)*12)+J5+J6 -> 12 | M5: =IF(G5=1,31-F5,IF(G5=2,28-F5,IF(G5=3,31-F5,IF(G5=4,30-F5,IF(G5=5,31-F5,IF(G5=6,30-F5,IF(G5=7,31-F5,IF(G5=8,31-F5,IF(G5=9,30-F5,IF(G5=10,31-F5,IF(G5=11,30-F5,IF(G5=12,31-F5))))))))))))+1 -> 31 | N5: =SUM(K5+M5+M6) -> 0
A6: PRORROGA | B6: =PR!B65 -> 2025-01-01 | C6: =PR!H5 -> 2025-12-31 | E6: FI VINCULACIÓ | F6: =DAY(C5) -> 31 | G6: =MONTH(C5) -> 12 | H6: =YEAR(C5) -> 2025 | J6: =IF(AND(G6=1,F6=31),0,IF(AND(G6=2,28=F6),0,IF(AND(G6=3,31=F6),0,IF(AND(G6=4,30=F6),0,IF(AND(G6=5,31=F6),0,IF(AND(G6=6,30=F6),0,IF(AND(G6=7,31=F6),0,IF(AND(G6=8,31=F6),0,IF(AND(G6=9,30=F6),0,IF(AND(G6=10,31=F6),0,IF(AND(G6=11,30=F6),0,IF(AND(G6=12,31=F6),0,-1)))))))))))) -> 0 | M6: =IF(AND(G6=1,F6<>31),F6,IF(AND(G6=2,28<>F6),F6,IF(AND(G6=3,31<>F6),F6,IF(AND(G6=4,30<>F6),F6,IF(AND(G6=5,31<>F6),F6,IF(AND(G6=6,30<>F6),F6,IF(AND(G6=7,31<>F6),F6,IF(AND(G6=8,31<>F6),F6,IF(AND(G6=9,30<>F6),F6,IF(AND(G6=10,31<>F6),F6,IF(AND(G6=11,30<>F6),F6,IF(AND(G6=12,31<>F6),F6,0)))))))))))) -> 0
A7: dies pr distingit
A8: TOTAL VINCULACIÓ | B8: ='PR DISTINGIT '!B57 -> 2024-10-01 | C8: ='PR DISTINGIT '!C57 -> 2024-12-31 | E8: CÀLCUL DIES PRÒRROGA pr
A9: PRORROGA | B9: ='PR DISTINGIT '!B58 -> 2024-10-01 | C9: ='PR DISTINGIT '!C58 -> 2024-12-31 | F9: DIA | G9: MES | H9: ANY | J9: dif mesos | K9: dif dies | L9: total mesos | M9: dies | N9: total dies
E10: INICI PRORROGA | F10: =DAY(B6) -> 1 | G10: =MONTH(B6) -> 1 | H10: =YEAR(B6) -> 2025 | J10: =IF(F10>1,-1,0) -> 0 | K10: =IF(F10=1,-M10,0) -> -31 | L10: =IF(H10=H11,G11-G10+1,13-G10+G11+(H11-H10-1)*12)+J10+J11 -> 12 | M10: =IF(G10=1,31-F10,IF(G10=2,28-F10,IF(G10=3,31-F10,IF(G10=4,30-F10,IF(G10=5,31-F10,IF(G10=6,30-F10,IF(G10=7,31-F10,IF(G10=8,31-F10,IF(G10=9,30-F10,IF(G10=10,31-F10,IF(G10=11,30-F10,IF(G10=12,31-F10))))))))))))+1 -> 31 | N10: =SUM(K10+M10+M11) -> 0
E11: FI VINCULACIÓ | F11: =DAY(C5) -> 31 | G11: =MONTH(C5) -> 12 | H11: =YEAR(C5) -> 2025 | J11: =IF(AND(G11=1,F11=31),0,IF(AND(G11=2,28=F11),0,IF(AND(G11=3,31=F11),0,IF(AND(G11=4,30=F11),0,IF(AND(G11=5,31=F11),0,IF(AND(G11=6,30=F11),0,IF(AND(G11=7,31=F11),0,IF(AND(G11=8,31=F11),0,IF(AND(G11=9,30=F11),0,IF(AND(G11=10,31=F11),0,IF(AND(G11=11,30=F11),0,IF(AND(G11=12,31=F11),0,-1)))))))))))) -> 0 | M11: =IF(AND(G11=1,F11<>31),F11,IF(AND(G11=2,28<>F11),F11,IF(AND(G11=3,31<>F11),F11,IF(AND(G11=4,30<>F11),F11,IF(AND(G11=5,31<>F11),F11,IF(AND(G11=6,30<>F11),F11,IF(AND(G11=7,31<>F11),F11,IF(AND(G11=8,31<>F11),F11,IF(AND(G11=9,30<>F11),F11,IF(AND(G11=10,31<>F11),F11,IF(AND(G11=11,30<>F11),F11,IF(AND(G11=12,31<>F11),F11,0)))))))))))) -> 0
E13: CÀLCUL DIES pr DISTINGIT
F14: DIA | G14: MES | H14: ANY | J14: dif mesos | K14: dif dies | L14: total mesos | M14: dies | N14: total dies
E15: INICI | F15: =DAY(B8) -> 1 | G15: =MONTH(B8) -> 10 | H15: =YEAR(B8) -> 2024 | J15: =IF(F15>1,-1,0) -> 0 | K15: =IF(F15=1,-M15,0) -> -31 | L15: =IF(H15=H16,G16-G15+1,13-G15+G16+(H16-H15-1)*12)+J15+J16 -> 3 | M15: =IF(G15=1,31-F15,IF(G15=2,28-F15,IF(G15=3,31-F15,IF(G15=4,30-F15,IF(G15=5,31-F15,IF(G15=6,30-F15,IF(G15=7,31-F15,IF(G15=8,31-F15,IF(G15=9,30-F15,IF(G15=10,31-F15,IF(G15=11,30-F15,IF(G15=12,31-F15))))))))))))+1 -> 31 | N15: =SUM(K15+M15+M16) -> 0
E16: FI | F16: =DAY(C8) -> 31 | G16: =MONTH(C8) -> 12 | H16: =YEAR(C8) -> 2024 | J16: =IF(AND(G16=1,F16=31),0,IF(AND(G16=2,28=F16),0,IF(AND(G16=3,31=F16),0,IF(AND(G16=4,30=F16),0,IF(AND(G16=5,31=F16),0,IF(AND(G16=6,30=F16),0,IF(AND(G16=7,31=F16),0,IF(AND(G16=8,31=F16),0,IF(AND(G16=9,30=F16),0,IF(AND(G16=10,31=F16),0,IF(AND(G16=11,30=F16),0,IF(AND(G16=12,31=F16),0,-1)))))))))))) -> 0 | M16: =IF(AND(G16=1,F16<>31),F16,IF(AND(G16=2,28<>F16),F16,IF(AND(G16=3,31<>F16),F16,IF(AND(G16=4,30<>F16),F16,IF(AND(G16=5,31<>F16),F16,IF(AND(G16=6,30<>F16),F16,IF(AND(G16=7,31<>F16),F16,IF(AND(G16=8,31<>F16),F16,IF(AND(G16=9,30<>F16),F16,IF(AND(G16=10,31<>F16),F16,IF(AND(G16=11,30<>F16),F16,IF(AND(G16=12,31<>F16),F16,0)))))))))))) -> 0
E18: CÀLCUL DIES PRÒRROGA pr DISTINGIT
F19: DIA | G19: MES | H19: ANY | J19: dif mesos | K19: dif dies | L19: total mesos | M19: dies | N19: total dies
E20: INICI | F20: =DAY(B9) -> 1 | G20: =MONTH(B9) -> 10 | H20: =YEAR(B9) -> 2024 | J20: =IF(F20>1,-1,0) -> 0 | K20: =IF(F20=1,-M20,0) -> -31 | L20: =IF(H20=H21,G21-G20+1,13-G20+G21+(H21-H20-1)*12)+J20+J21 -> 3 | M20: =IF(G20=1,31-F20,IF(G20=2,28-F20,IF(G20=3,31-F20,IF(G20=4,30-F20,IF(G20=5,31-F20,IF(G20=6,30-F20,IF(G20=7,31-F20,IF(G20=8,31-F20,IF(G20=9,30-F20,IF(G20=10,31-F20,IF(G20=11,30-F20,IF(G20=12,31-F20))))))))))))+1 -> 31 | N20: =SUM(K20+M20+M21) -> 0
E21: FI | F21: =DAY(C9) -> 31 | G21: =MONTH(C9) -> 12 | H21: =YEAR(C9) -> 2024 | J21: =IF(AND(G21=1,F21=31),0,IF(AND(G21=2,28=F21),0,IF(AND(G21=3,31=F21),0,IF(AND(G21=4,30=F21),0,IF(AND(G21=5,31=F21),0,IF(AND(G21=6,30=F21),0,IF(AND(G21=7,31=F21),0,IF(AND(G21=8,31=F21),0,IF(AND(G21=9,30=F21),0,IF(AND(G21=10,31=F21),0,IF(AND(G21=11,30=F21),0,IF(AND(G21=12,31=F21),0,-1)))))))))))) -> 0 | M21: =IF(AND(G21=1,F21<>31),F21,IF(AND(G21=2,28<>F21),F21,IF(AND(G21=3,31<>F21),F21,IF(AND(G21=4,30<>F21),F21,IF(AND(G21=5,31<>F21),F21,IF(AND(G21=6,30<>F21),F21,IF(AND(G21=7,31<>F21),F21,IF(AND(G21=8,31<>F21),F21,IF(AND(G21=9,30<>F21),F21,IF(AND(G21=10,31<>F21),F21,IF(AND(G21=11,30<>F21),F21,IF(AND(G21=12,31<>F21),F21,0)))))))))))) -> 0
